[Event "Early-Titled-Tuesday-Blitz-April-16-2024"]
[Site "Chess.com"]
[Date "2024.04.16"]
[Round "9"]
[White "Yan_Dyomin2010"]
[Black "Slovineanu"]
[Result "1-0"]
[WhiteElo "2632"]
[BlackElo "2500"]
[TimeControl "180+1"]
[EndTime "9:49:07 PDT"]
[Termination "Yan_Dyomin2010 won on time"]

1. e4 {[%clk 0:03:00.9]} 1... c6 {[%clk 0:02:58]} 2. d4 {[%clk 0:03:01.3]} 2...
d5 {[%clk 0:02:58]} 3. e5 {[%clk 0:03:01.8]} 3... Bf5 {[%clk 0:02:57.7]} 4. Nf3
{[%clk 0:03:02.3]} 4... e6 {[%clk 0:02:57.4]} 5. Be2 {[%clk 0:03:03]} 5... Nd7
{[%clk 0:02:57.7]} 6. O-O {[%clk 0:03:03.3]} 6... a6 {[%clk 0:02:57.9]} 7. Re1
{[%clk 0:03:02.5]} 7... h6 {[%clk 0:02:54.6]} 8. Nbd2 {[%clk 0:03:02.9]} 8... c5
{[%clk 0:02:48.9]} 9. c4 {[%clk 0:03:02]} 9... Ne7 {[%clk 0:02:47.6]} 10. b3
{[%clk 0:03:01.8]} 10... dxc4 {[%clk 0:02:21.8]} 11. Nxc4 {[%clk 0:02:45.6]}
11... Nd5 {[%clk 0:02:20.7]} 12. Bb2 {[%clk 0:02:44.7]} 12... b5 {[%clk
0:02:13.9]} 13. Nd6+ {[%clk 0:02:41.9]} 13... Bxd6 {[%clk 0:02:13.3]} 14. exd6
{[%clk 0:02:42.8]} 14... O-O {[%clk 0:02:09.3]} 15. dxc5 {[%clk 0:02:42.7]}
15... Nxc5 {[%clk 0:02:07.8]} 16. Bxg7 {[%clk 0:02:37.1]} 16... Kxg7 {[%clk
0:01:55.5]} 17. Qd4+ {[%clk 0:02:35.8]} 17... Kh7 {[%clk 0:01:50.1]} 18. Qxc5
{[%clk 0:02:35.6]} 18... Rc8 {[%clk 0:01:50.1]} 19. Qd4 {[%clk 0:02:33]} 19...
Qxd6 {[%clk 0:01:44.6]} 20. Rac1 {[%clk 0:02:28]} 20... Qf4 {[%clk 0:01:39.1]}
21. g3 {[%clk 0:02:25]} 21... Qxc1 {[%clk 0:01:13.6]} 22. Rxc1 {[%clk
0:02:25.9]} 22... Rxc1+ {[%clk 0:01:13.7]} 23. Kg2 {[%clk 0:02:25.5]} 23... Rfc8
{[%clk 0:01:09.4]} 24. Nh4 {[%clk 0:02:19.5]} 24... Bg6 {[%clk 0:00:41]} 25.
Nxg6 {[%clk 0:02:18.2]} 25... fxg6 {[%clk 0:00:41.4]} 26. Bg4 {[%clk 0:02:15.6]}
26... Re8 {[%clk 0:00:30.1]} 27. Qa7+ {[%clk 0:02:13.5]} 27... Re7 {[%clk
0:00:21.1]} 28. Qxa6 {[%clk 0:02:11.9]} 28... Rc2 {[%clk 0:00:20.8]} 29. Bxe6
{[%clk 0:02:01.7]} 29... Nc7 {[%clk 0:00:19.6]} 30. Qd6 {[%clk 0:01:47.6]} 30...
Rxe6 {[%clk 0:00:18.4]} 31. Qd7+ {[%clk 0:01:48.4]} 31... Kh8 {[%clk 0:00:17.6]}
32. Qd8+ {[%clk 0:01:48]} 32... Kh7 {[%clk 0:00:17.2]} 33. Qd7+ {[%clk
0:01:45.3]} 33... Kg8 {[%clk 0:00:17.5]} 34. Qd8+ {[%clk 0:01:45.1]} 34... Kg7
{[%clk 0:00:17.9]} 35. Qd7+ {[%clk 0:01:44.8]} 35... Kg8 {[%clk 0:00:16.8]} 36.
Qd8+ {[%clk 0:01:44.7]} 36... Re8 {[%clk 0:00:15.9]} 37. Qd7 {[%clk 0:01:43.5]}
37... Rf8 {[%clk 0:00:15]} 38. Kh3 {[%clk 0:01:36.5]} 38... Rfxf2 {[%clk
0:00:14.8]} 39. Qd8+ {[%clk 0:01:36.2]} 39... Kg7 {[%clk 0:00:14.9]} 40. Qe7+
{[%clk 0:01:34.8]} 40... Rf7 {[%clk 0:00:12.7]} 41. Qe5+ {[%clk 0:01:35.1]}
41... Kh7 {[%clk 0:00:13.1]} 42. a4 {[%clk 0:01:34.3]} 42... bxa4 {[%clk
0:00:12.8]} 43. bxa4 {[%clk 0:01:35.2]} 43... Na6 {[%clk 0:00:06.6]} 44. Qe6
{[%clk 0:01:33]} 44... Ra7 {[%clk 0:00:04.6]} 45. Qb6 {[%clk 0:01:31.1]} 45...
Rcc7 {[%clk 0:00:05.1]} 46. a5 {[%clk 0:01:29.1]} 46... Nc5 {[%clk 0:00:05]} 47.
Kg2 {[%clk 0:01:27.7]} 47... Ne4 {[%clk 0:00:05]} 48. h4 {[%clk 0:01:25.7]}
48... Kg7 {[%clk 0:00:03.2]} 49. Qd4+ {[%clk 0:01:25.3]} 49... Nf6 {[%clk
0:00:03]} 50. Qb6 {[%clk 0:01:23.8]} 50... Rcb7 {[%clk 0:00:02.8]} 51. Qd8
{[%clk 0:01:22.1]} 51... h5 {[%clk 0:00:02.8]} 52. Kf3 {[%clk 0:01:20]} 52...
Rd7 {[%clk 0:00:03.3]} 53. Qb6 {[%clk 0:01:19.2]} 53... Rdb7 {[%clk 0:00:02.8]}
54. Qd8 {[%clk 0:01:19.1]} 54... Rd7 {[%clk 0:00:03.4]} 55. Qb6 {[%clk
0:01:19.2]} 55... Rab7 {[%clk 0:00:04]} 56. Qc6 {[%clk 0:01:15.2]} 56... Rb3+
{[%clk 0:00:03.8]} 57. Ke2 {[%clk 0:01:13.8]} 57... Rdd3 {[%clk 0:00:03.5]} 58.
a6 {[%clk 0:01:13.2]} 58... Rxg3 {[%clk 0:00:03.4]} 59. a7 {[%clk 0:01:10.2]}
59... Rg2+ {[%clk 0:00:02.4]} 60. Qxg2 {[%clk 0:01:08.7]} 60... Rb2+ {[%clk
0:00:02.2]} 61. Kf3 {[%clk 0:01:08.6]} 61... Rb3+ {[%clk 0:00:01.5]} 62. Kf4
{[%clk 0:01:08.6]} 62... Rb4+ {[%clk 0:00:01.4]} 63. Ke5 {[%clk 0:01:08.4]} 1-0

[Event "Early-Titled-Tuesday-Blitz-April-16-2024"]
[Site "Chess.com"]
[Date "2024.04.16"]
[Round "9"]
[White "tsaruk_maks"]
[Black "Durarbayli"]
[Result "0-1"]
[WhiteElo "2729"]
[BlackElo "2882"]
[TimeControl "180+1"]
[EndTime "9:49:10 PDT"]
[Termination "Durarbayli won on time"]

1. e4 {[%clk 0:02:53.3]} 1... e5 {[%clk 0:02:59.3]} 2. Nf3 {[%clk 0:02:53.4]}
2... Nc6 {[%clk 0:02:59.9]} 3. Bb5 {[%clk 0:02:53.6]} 3... a6 {[%clk 0:03:00.3]}
4. Ba4 {[%clk 0:02:54.4]} 4... Nge7 {[%clk 0:03:00.7]} 5. c3 {[%clk 0:02:53.8]}
5... g6 {[%clk 0:03:00.6]} 6. d4 {[%clk 0:02:54.2]} 6... exd4 {[%clk 0:03:01.5]}
7. cxd4 {[%clk 0:02:54.5]} 7... b5 {[%clk 0:03:02.2]} 8. Bb3 {[%clk 0:02:52.2]}
8... Bg7 {[%clk 0:03:01.1]} 9. Nc3 {[%clk 0:02:50.7]} 9... d6 {[%clk 0:03:01]}
10. h3 {[%clk 0:02:48.3]} 10... O-O {[%clk 0:03:00.5]} 11. O-O {[%clk
0:02:48.9]} 11... Na5 {[%clk 0:03:01]} 12. Bg5 {[%clk 0:02:48.5]} 12... h6
{[%clk 0:02:58]} 13. Bxe7 {[%clk 0:02:33.9]} 13... Qxe7 {[%clk 0:02:58.9]} 14.
Nd5 {[%clk 0:02:29.3]} 14... Qd8 {[%clk 0:02:58.6]} 15. Rc1 {[%clk 0:02:29.8]}
15... c6 {[%clk 0:02:57.6]} 16. Ne3 {[%clk 0:02:29.7]} 16... Ra7 {[%clk
0:02:47.1]} 17. Bc2 {[%clk 0:02:29.3]} 17... c5 {[%clk 0:02:42.7]} 18. e5 {[%clk
0:02:22.8]} 18... cxd4 {[%clk 0:02:35.7]} 19. Qxd4 {[%clk 0:02:22.7]} 19... Nc6
{[%clk 0:02:35]} 20. Qxd6 {[%clk 0:02:23.2]} 20... Nxe5 {[%clk 0:02:21.1]} 21.
Qd1 {[%clk 0:01:46]} 21... Rd7 {[%clk 0:02:09.6]} 22. Qe2 {[%clk 0:01:43.2]}
22... Nxf3+ {[%clk 0:02:10.1]} 23. Qxf3 {[%clk 0:01:43.9]} 23... Bxb2 {[%clk
0:02:10.2]} 24. Rcd1 {[%clk 0:01:44.1]} 24... Bd4 {[%clk 0:02:00.3]} 25. Bb3
{[%clk 0:01:36.4]} 25... Bb7 {[%clk 0:01:40.7]} 26. Qf4 {[%clk 0:01:36.2]} 26...
Bg7 {[%clk 0:01:20.4]} 27. Rxd7 {[%clk 0:01:30.6]} 27... Qxd7 {[%clk 0:01:21.3]}
28. Rd1 {[%clk 0:01:31]} 28... Qe7 {[%clk 0:01:16.7]} 29. Qg4 {[%clk 0:01:21.3]}
29... Qe4 {[%clk 0:01:01.8]} 30. Rd7 {[%clk 0:01:00.2]} 30... Qxg4 {[%clk
0:01:01.2]} 31. hxg4 {[%clk 0:01:01.1]} 31... Bc8 {[%clk 0:00:52.3]} 32. Rc7
{[%clk 0:00:58.4]} 32... Be5 {[%clk 0:00:48.9]} 33. Re7 {[%clk 0:00:45.4]} 33...
Bd6 {[%clk 0:00:46.7]} 34. Re4 {[%clk 0:00:39.6]} 34... Kg7 {[%clk 0:00:44.2]}
35. Nd5 {[%clk 0:00:32.9]} 35... Bc5 {[%clk 0:00:35.2]} 36. Kf1 {[%clk 0:00:32]}
36... Rd8 {[%clk 0:00:34.3]} 37. Ne7 {[%clk 0:00:23.6]} 37... Bb7 {[%clk
0:00:29.5]} 38. Rf4 {[%clk 0:00:24]} 38... Rf8 {[%clk 0:00:23.3]} 39. Nd5 {[%clk
0:00:24.6]} 39... Bd6 {[%clk 0:00:21.9]} 40. Rf6 {[%clk 0:00:23.8]} 40... Rd8
{[%clk 0:00:19.4]} 41. Rf3 {[%clk 0:00:15.8]} 41... a5 {[%clk 0:00:14.1]} 42. a4
{[%clk 0:00:08]} 42... bxa4 {[%clk 0:00:14.2]} 43. Ba2 {[%clk 0:00:08.8]} 43...
Bf8 {[%clk 0:00:12.1]} 0-1

[Event "Early-Titled-Tuesday-Blitz-April-16-2024"]
[Site "Chess.com"]
[Date "2024.04.16"]
[Round "9"]
[White "Flawless_Fighter"]
[Black "chess123456s"]
[Result "1-0"]
[WhiteElo "2762"]
[BlackElo "2602"]
[TimeControl "180+1"]
[EndTime "9:49:11 PDT"]
[Termination "Flawless_Fighter won by resignation"]

1. e4 {[%clk 0:03:00.9]} 1... e5 {[%clk 0:02:59.3]} 2. Nf3 {[%clk 0:03:00.6]}
2... Nc6 {[%clk 0:03:00]} 3. Nc3 {[%clk 0:03:01.1]} 3... Nf6 {[%clk 0:03:00.5]}
4. Bb5 {[%clk 0:03:01.7]} 4... Bb4 {[%clk 0:03:01]} 5. O-O {[%clk 0:03:01.7]}
5... O-O {[%clk 0:03:01.7]} 6. d3 {[%clk 0:03:02.2]} 6... Bxc3 {[%clk
0:03:02.2]} 7. bxc3 {[%clk 0:03:03.1]} 7... d6 {[%clk 0:03:02.8]} 8. Re1 {[%clk
0:03:03.8]} 8... Qe7 {[%clk 0:03:01.8]} 9. h3 {[%clk 0:03:01.6]} 9... h6 {[%clk
0:03:01.9]} 10. d4 {[%clk 0:03:01.4]} 10... a6 {[%clk 0:03:01.9]} 11. Bd3 {[%clk
0:02:57.7]} 11... b5 {[%clk 0:02:55.6]} 12. a4 {[%clk 0:02:53.1]} 12... Rb8
{[%clk 0:02:41.3]} 13. axb5 {[%clk 0:02:52.3]} 13... axb5 {[%clk 0:02:42.2]} 14.
d5 {[%clk 0:02:51.7]} 14... Nd8 {[%clk 0:02:39.8]} 15. Ra7 {[%clk 0:02:45.2]}
15... Bb7 {[%clk 0:02:21.9]} 16. Qe2 {[%clk 0:02:38.3]} 16... c6 {[%clk
0:02:19.4]} 17. c4 {[%clk 0:02:05.7]} 17... bxc4 {[%clk 0:02:05.7]} 18. Bxc4
{[%clk 0:02:06.6]} 18... cxd5 {[%clk 0:02:03]} 19. exd5 {[%clk 0:02:05.8]} 19...
Qc7 {[%clk 0:02:02.1]} 20. Be3 {[%clk 0:02:01.6]} 20... Nd7 {[%clk 0:01:57.1]}
21. Rb1 {[%clk 0:01:53.3]} 21... Nc5 {[%clk 0:01:48.1]} 22. Nd2 {[%clk
0:01:45.4]} 22... Qc8 {[%clk 0:01:34.9]} 23. Rb5 {[%clk 0:01:17.1]} 23... Ra8
{[%clk 0:00:52.6]} 24. Bxc5 {[%clk 0:01:10.9]} 24... dxc5 {[%clk 0:00:52.6]} 25.
Rxa8 {[%clk 0:01:08]} 25... Bxa8 {[%clk 0:00:53.5]} 26. Qxe5 {[%clk 0:01:07.7]}
26... Nb7 {[%clk 0:00:48.6]} 27. Ne4 {[%clk 0:00:59.3]} 27... Re8 {[%clk
0:00:41.8]} 28. Qf4 {[%clk 0:00:59.6]} 28... Rxe4 {[%clk 0:00:21.5]} 29. Qxe4
{[%clk 0:00:57.5]} 29... Nd6 {[%clk 0:00:22]} 30. Qe5 {[%clk 0:00:51.5]} 30...
Nxb5 {[%clk 0:00:20.9]} 31. Bxb5 {[%clk 0:00:51.8]} 31... f6 {[%clk 0:00:20.7]}
32. Qd6 {[%clk 0:00:50.6]} 32... Kh7 {[%clk 0:00:13.7]} 33. Bc6 {[%clk
0:00:48.5]} 33... Bxc6 {[%clk 0:00:12.8]} 34. dxc6 {[%clk 0:00:49.4]} 34... Kg6
{[%clk 0:00:08.5]} 35. c7 {[%clk 0:00:49.2]} 35... Qe8 {[%clk 0:00:06.2]} 36.
Qg3+ {[%clk 0:00:39.3]} 36... Kf7 {[%clk 0:00:05.7]} 37. Qb3+ {[%clk 0:00:32.4]}
37... Kg6 {[%clk 0:00:05.6]} 38. Qd3+ {[%clk 0:00:31.8]} 38... Kf7 {[%clk
0:00:05.3]} 39. Qd8 {[%clk 0:00:32.3]} 39... Qe1+ {[%clk 0:00:05.1]} 40. Kh2
{[%clk 0:00:32.6]} 40... Qe5+ {[%clk 0:00:05.5]} 41. g3 {[%clk 0:00:32.4]} 41...
Qe2 {[%clk 0:00:04.4]} 42. Qd5+ {[%clk 0:00:30.8]} 42... Ke7 {[%clk 0:00:03.6]}
43. c8=Q {[%clk 0:00:31]} 43... Qxf2+ {[%clk 0:00:03.6]} 44. Qg2 {[%clk
0:00:31.8]} 1-0

[Event "Early-Titled-Tuesday-Blitz-April-16-2024"]
[Site "Chess.com"]
[Date "2024.04.16"]
[Round "9"]
[White "the_chess_child"]
[Black "SaqoChess_Twitch"]
[Result "1-0"]
[WhiteElo "2830"]
[BlackElo "2670"]
[TimeControl "180+1"]
[EndTime "9:49:13 PDT"]
[Termination "the_chess_child won by checkmate"]

1. e4 {[%clk 0:03:00.9]} 1... c5 {[%clk 0:02:59.7]} 2. Nf3 {[%clk 0:02:56.3]}
2... d6 {[%clk 0:02:59.1]} 3. g3 {[%clk 0:02:56.2]} 3... Nf6 {[%clk 0:02:59]} 4.
d3 {[%clk 0:02:56.5]} 4... e6 {[%clk 0:02:59]} 5. Bg2 {[%clk 0:02:54.4]} 5...
Be7 {[%clk 0:02:59.6]} 6. O-O {[%clk 0:02:54.7]} 6... O-O {[%clk 0:03:00]} 7.
Re1 {[%clk 0:02:53.7]} 7... Nc6 {[%clk 0:03:00.2]} 8. c3 {[%clk 0:02:53.4]} 8...
Qc7 {[%clk 0:02:55.8]} 9. Na3 {[%clk 0:02:51.6]} 9... a6 {[%clk 0:02:53.6]} 10.
Nc4 {[%clk 0:02:29.2]} 10... b5 {[%clk 0:02:50.2]} 11. Nxd6 {[%clk 0:02:27.3]}
11... Bxd6 {[%clk 0:02:48.3]} 12. e5 {[%clk 0:02:27.1]} 12... Nxe5 {[%clk
0:02:47.8]} 13. Nxe5 {[%clk 0:02:27]} 13... Bb7 {[%clk 0:02:47.6]} 14. Bxb7
{[%clk 0:02:23]} 14... Qxb7 {[%clk 0:02:48.5]} 15. a4 {[%clk 0:02:19.1]} 15...
Rfd8 {[%clk 0:02:47.1]} 16. Bg5 {[%clk 0:02:16.1]} 16... Be7 {[%clk 0:02:43.9]}
17. Qe2 {[%clk 0:01:56.5]} 17... h6 {[%clk 0:02:36.8]} 18. Bd2 {[%clk
0:01:43.9]} 18... Qd5 {[%clk 0:02:20.4]} 19. axb5 {[%clk 0:01:22.6]} 19... axb5
{[%clk 0:02:21.3]} 20. c4 {[%clk 0:01:22.6]} 20... bxc4 {[%clk 0:02:18.8]} 21.
dxc4 {[%clk 0:01:21]} 21... Qb7 {[%clk 0:02:18]} 22. Rxa8 {[%clk 0:01:20.4]}
22... Rxa8 {[%clk 0:02:18.5]} 23. Bc3 {[%clk 0:01:20.6]} 23... Rd8 {[%clk
0:02:14.6]} 24. h4 {[%clk 0:01:17.2]} 24... Qa8 {[%clk 0:01:55.9]} 25. Nxf7
{[%clk 0:01:15.6]} 25... Kxf7 {[%clk 0:01:30.9]} 26. Qxe6+ {[%clk 0:01:15.2]}
26... Kg6 {[%clk 0:01:31.6]} 27. Qxe7 {[%clk 0:01:04.1]} 27... Re8 {[%clk
0:01:31.9]} 28. Qxc5 {[%clk 0:01:04.3]} 28... Rxe1+ {[%clk 0:01:31.6]} 29. Bxe1
{[%clk 0:01:05.2]} 29... Qe4 {[%clk 0:01:13.8]} 30. Bc3 {[%clk 0:01:01]} 30...
Qb1+ {[%clk 0:01:12.4]} 31. Kg2 {[%clk 0:00:48.6]} 31... Qe4+ {[%clk 0:01:10.7]}
32. Kf1 {[%clk 0:00:39.7]} 32... Qd3+ {[%clk 0:01:03.8]} 33. Ke1 {[%clk
0:00:35.9]} 33... Qb1+ {[%clk 0:00:45.4]} 34. Ke2 {[%clk 0:00:35.8]} 34... Qc2+
{[%clk 0:00:45.8]} 35. Kf1 {[%clk 0:00:27.4]} 35... Qd3+ {[%clk 0:00:44.1]} 36.
Kg1 {[%clk 0:00:26.9]} 36... Qb1+ {[%clk 0:00:44.1]} 37. Kh2 {[%clk 0:00:27.2]}
37... Ng4+ {[%clk 0:00:44.1]} 38. Kh3 {[%clk 0:00:27.4]} 38... Qh1+ {[%clk
0:00:13.4]} 39. Kxg4 {[%clk 0:00:27.4]} 39... Qe4+ {[%clk 0:00:14]} 40. f4
{[%clk 0:00:27]} 40... Qe2+ {[%clk 0:00:12.9]} 41. Kh3 {[%clk 0:00:27.3]} 41...
Qf1+ {[%clk 0:00:12.9]} 42. Kh2 {[%clk 0:00:27.8]} 42... Qe2+ {[%clk 0:00:12.1]}
43. Kg1 {[%clk 0:00:27.8]} 43... Qd1+ {[%clk 0:00:11.7]} 44. Kg2 {[%clk
0:00:28.4]} 44... Qe2+ {[%clk 0:00:10]} 45. Qf2 {[%clk 0:00:29]} 45... Qe4+
{[%clk 0:00:10.4]} 46. Qf3 {[%clk 0:00:28.8]} 46... Qc2+ {[%clk 0:00:10.6]} 47.
Qf2 {[%clk 0:00:29.3]} 47... Qe4+ {[%clk 0:00:10.5]} 48. Kh2 {[%clk 0:00:30]}
48... Qxc4 {[%clk 0:00:10.1]} 49. Qc2+ {[%clk 0:00:30.2]} 49... Kh5 {[%clk
0:00:09.3]} 50. Qf5+ {[%clk 0:00:28.7]} 50... g5 {[%clk 0:00:09.9]} 51. g4+
{[%clk 0:00:29.2]} 51... Kxh4 {[%clk 0:00:10.2]} 52. Be1# {[%clk 0:00:30.1]} 1-0

[Event "Early-Titled-Tuesday-Blitz-April-16-2024"]
[Site "Chess.com"]
[Date "2024.04.16"]
[Round "9"]
[White "andong36"]
[Black "Bwert2602"]
[Result "1-0"]
[WhiteElo "2383"]
[BlackElo "2203"]
[TimeControl "180+1"]
[EndTime "9:49:13 PDT"]
[Termination "andong36 won on time"]

1. d4 {[%clk 0:02:56.9]} 1... Nf6 {[%clk 0:02:54.3]} 2. Bf4 {[%clk 0:02:51.2]}
2... c5 {[%clk 0:02:52]} 3. e3 {[%clk 0:02:45.1]} 3... cxd4 {[%clk 0:02:44.3]}
4. exd4 {[%clk 0:02:42.3]} 4... d5 {[%clk 0:02:44.6]} 5. c3 {[%clk 0:02:36.9]}
5... Bf5 {[%clk 0:02:42.6]} 6. Nf3 {[%clk 0:02:34.2]} 6... Nc6 {[%clk
0:02:42.1]} 7. Bd3 {[%clk 0:02:29.9]} 7... Bxd3 {[%clk 0:02:37.8]} 8. Qxd3
{[%clk 0:02:30.5]} 8... Qb6 {[%clk 0:02:33.1]} 9. Nbd2 {[%clk 0:02:12.1]} 9...
e6 {[%clk 0:02:25.2]} 10. O-O {[%clk 0:02:10]} 10... Nh5 {[%clk 0:02:18]} 11.
Be3 {[%clk 0:02:06.4]} 11... Bd6 {[%clk 0:02:15.5]} 12. b4 {[%clk 0:02:05.5]}
12... O-O {[%clk 0:02:04.2]} 13. Ng5 {[%clk 0:02:02.8]} 13... Nf6 {[%clk
0:01:56.6]} 14. a4 {[%clk 0:01:55.1]} 14... e5 {[%clk 0:01:56.2]} 15. dxe5
{[%clk 0:01:44.3]} 15... Nxe5 {[%clk 0:01:55.8]} 16. Qf5 {[%clk 0:01:38]} 16...
Qc7 {[%clk 0:01:50.8]} 17. Bd4 {[%clk 0:01:37.4]} 17... h6 {[%clk 0:01:15.5]}
18. f4 {[%clk 0:01:21.7]} 18... Ned7 {[%clk 0:00:38.3]} 19. Nh3 {[%clk
0:01:15.5]} 19... Rae8 {[%clk 0:00:29]} 20. Rae1 {[%clk 0:01:11.6]} 20... Rxe1
{[%clk 0:00:20.4]} 21. Rxe1 {[%clk 0:01:12.5]} 21... Re8 {[%clk 0:00:21.2]} 22.
Rxe8+ {[%clk 0:01:09.1]} 22... Nxe8 {[%clk 0:00:22.1]} 23. g3 {[%clk 0:01:00.8]}
23... Ndf6 {[%clk 0:00:17.9]} 24. Nf2 {[%clk 0:00:59.3]} 24... Qd7 {[%clk
0:00:17.5]} 25. Qd3 {[%clk 0:00:54.4]} 25... Qxa4 {[%clk 0:00:17.1]} 26. Kg2
{[%clk 0:00:52.3]} 26... a6 {[%clk 0:00:16]} 27. Nf3 {[%clk 0:00:48.2]} 27...
Qb5 {[%clk 0:00:13.7]} 28. Qe3 {[%clk 0:00:45]} 28... Nc7 {[%clk 0:00:12.3]} 29.
Bxf6 {[%clk 0:00:41.1]} 29... gxf6 {[%clk 0:00:13.2]} 30. Nd4 {[%clk 0:00:40.6]}
30... Qe8 {[%clk 0:00:11.7]} 31. Qf3 {[%clk 0:00:38]} 31... Qe7 {[%clk
0:00:09.6]} 32. Qg4+ {[%clk 0:00:36.8]} 32... Kh7 {[%clk 0:00:09.4]} 33. Nf5
{[%clk 0:00:36.8]} 33... Qf8 {[%clk 0:00:10]} 34. Qh5 {[%clk 0:00:36.1]} 34...
b6 {[%clk 0:00:08.4]} 35. Ng4 {[%clk 0:00:34.9]} 35... d4 {[%clk 0:00:03.1]} 36.
cxd4 {[%clk 0:00:20.5]} 36... Nd5 {[%clk 0:00:01.8]} 37. Ngxh6 {[%clk
0:00:12.9]} 1-0

[Event "Early-Titled-Tuesday-Blitz-April-16-2024"]
[Site "Chess.com"]
[Date "2024.04.16"]
[Round "9"]
[White "Zhigalko_Sergei"]
[Black "DenLaz"]
[Result "0-1"]
[WhiteElo "2927"]
[BlackElo "3116"]
[TimeControl "180+1"]
[EndTime "9:49:14 PDT"]
[Termination "DenLaz won by checkmate"]

1. e4 {[%clk 0:03:00.9]} 1... e5 {[%clk 0:03:00.4]} 2. Nf3 {[%clk 0:03:00.6]}
2... Nc6 {[%clk 0:03:01.1]} 3. Bc4 {[%clk 0:03:00]} 3... Bc5 {[%clk 0:03:01.7]}
4. O-O {[%clk 0:02:59.8]} 4... Nf6 {[%clk 0:03:02.2]} 5. d3 {[%clk 0:03:00.4]}
5... d6 {[%clk 0:03:02.8]} 6. Nbd2 {[%clk 0:03:01]} 6... O-O {[%clk 0:03:02.6]}
7. c3 {[%clk 0:03:01.7]} 7... a6 {[%clk 0:03:02.6]} 8. Bb3 {[%clk 0:02:58.9]}
8... Be6 {[%clk 0:02:57.1]} 9. h3 {[%clk 0:02:53.9]} 9... Bxb3 {[%clk
0:02:51.5]} 10. Qxb3 {[%clk 0:02:43]} 10... Qd7 {[%clk 0:02:48.7]} 11. Re1
{[%clk 0:02:42.3]} 11... h6 {[%clk 0:02:48.5]} 12. Nf1 {[%clk 0:02:39.5]} 12...
Rfe8 {[%clk 0:02:48.4]} 13. Be3 {[%clk 0:02:35.6]} 13... Bxe3 {[%clk 0:02:48.6]}
14. Nxe3 {[%clk 0:02:36.5]} 14... Ne7 {[%clk 0:02:47.8]} 15. Nh4 {[%clk
0:02:18.7]} 15... Rab8 {[%clk 0:02:44.4]} 16. Rad1 {[%clk 0:02:03.5]} 16... b5
{[%clk 0:02:41]} 17. Nhf5 {[%clk 0:01:45.9]} 17... Nxf5 {[%clk 0:02:38.8]} 18.
Nxf5 {[%clk 0:01:45.8]} 18... g6 {[%clk 0:02:38]} 19. Ne3 {[%clk 0:01:34.7]}
19... Kg7 {[%clk 0:02:36.9]} 20. f3 {[%clk 0:01:19.3]} 20... c5 {[%clk
0:02:31.5]} 21. d4 {[%clk 0:01:18.9]} 21... c4 {[%clk 0:02:03.7]} 22. Qc2 {[%clk
0:01:18.7]} 22... Qc6 {[%clk 0:01:59.3]} 23. Qf2 {[%clk 0:01:16.7]} 23... Qc8
{[%clk 0:01:40.2]} 24. dxe5 {[%clk 0:01:10.6]} 24... dxe5 {[%clk 0:01:40.1]} 25.
Rd6 {[%clk 0:01:11]} 25... Re6 {[%clk 0:01:20.3]} 26. Red1 {[%clk 0:01:11.3]}
26... a5 {[%clk 0:01:14.3]} 27. Kh2 {[%clk 0:00:41.4]} 27... Nh5 {[%clk
0:00:47.8]} 28. Ng4 {[%clk 0:00:26.8]} 28... Nf4 {[%clk 0:00:35.1]} 29. Qh4
{[%clk 0:00:22.8]} 29... g5 {[%clk 0:00:34.9]} 30. Qg3 {[%clk 0:00:10.5]} 30...
Nd3 {[%clk 0:00:33.4]} 31. Rd5 {[%clk 0:00:04.9]} 31... Qc7 {[%clk 0:00:29.5]}
32. Ne3 {[%clk 0:00:04.4]} 32... a4 {[%clk 0:00:20.8]} 33. Nf5+ {[%clk
0:00:05.3]} 33... Kg6 {[%clk 0:00:21.1]} 34. b3 {[%clk 0:00:05.1]} 34... axb3
{[%clk 0:00:20.6]} 35. axb3 {[%clk 0:00:05.7]} 35... Rd8 {[%clk 0:00:15.1]} 36.
bxc4 {[%clk 0:00:04.9]} 36... bxc4 {[%clk 0:00:16]} 37. Rxd8 {[%clk 0:00:04.6]}
37... Qxd8 {[%clk 0:00:16.9]} 38. Rb1 {[%clk 0:00:04.5]} 38... Rb6 {[%clk
0:00:15.3]} 39. Ne7+ {[%clk 0:00:03.6]} 39... Kh7 {[%clk 0:00:14]} 40. Rxb6
{[%clk 0:00:02.6]} 40... Qxb6 {[%clk 0:00:14.9]} 41. Nf5 {[%clk 0:00:02.7]}
41... Nf4 {[%clk 0:00:13.5]} 42. h4 {[%clk 0:00:02.1]} 42... Ne2 {[%clk
0:00:11.7]} 43. Qg4 {[%clk 0:00:02.3]} 43... Qg1+ {[%clk 0:00:12.1]} 44. Kh3
{[%clk 0:00:02.6]} 44... Qh1# {[%clk 0:00:13]} 0-1

[Event "Early-Titled-Tuesday-Blitz-April-16-2024"]
[Site "Chess.com"]
[Date "2024.04.16"]
[Round "9"]
[White "bylavochka"]
[Black "kacperkarwowski"]
[Result "0-1"]
[WhiteElo "2344"]
[BlackElo "2500"]
[TimeControl "180+1"]
[EndTime "9:49:15 PDT"]
[Termination "kacperkarwowski won by checkmate"]

1. e4 {[%clk 0:03:00.9]} 1... c6 {[%clk 0:02:54.3]} 2. d4 {[%clk 0:03:00.5]}
2... d6 {[%clk 0:02:53.7]} 3. Nf3 {[%clk 0:02:57.2]} 3... h6 {[%clk 0:02:47.8]}
4. Be2 {[%clk 0:02:57.3]} 4... g5 {[%clk 0:02:47.3]} 5. O-O {[%clk 0:02:57.5]}
5... Bg7 {[%clk 0:02:37.3]} 6. c3 {[%clk 0:02:56.9]} 6... Nd7 {[%clk 0:02:36.4]}
7. Ne1 {[%clk 0:02:52.4]} 7... Ngf6 {[%clk 0:02:30.1]} 8. Qc2 {[%clk 0:02:44.3]}
8... Nf8 {[%clk 0:02:21.9]} 9. b4 {[%clk 0:02:29.4]} 9... Ng6 {[%clk 0:02:17.7]}
10. b5 {[%clk 0:02:18.2]} 10... Qa5 {[%clk 0:01:33.5]} 11. Na3 {[%clk 0:02:10]}
11... Be6 {[%clk 0:01:25.9]} 12. Nc4 {[%clk 0:02:02.9]} 12... Bxc4 {[%clk
0:01:24.1]} 13. Bxc4 {[%clk 0:02:03.8]} 13... cxb5 {[%clk 0:01:18.1]} 14. Bb3
{[%clk 0:02:03.7]} 14... Rc8 {[%clk 0:01:08.6]} 15. Bd2 {[%clk 0:01:50]} 15...
e5 {[%clk 0:00:52]} 16. Qd1 {[%clk 0:01:26.9]} 16... O-O {[%clk 0:00:46.8]} 17.
Qe2 {[%clk 0:00:34.5]} 17... Qb6 {[%clk 0:00:24.1]} 18. Nc2 {[%clk 0:00:29.2]}
18... Rfe8 {[%clk 0:00:16.9]} 19. d5 {[%clk 0:00:18.8]} 19... Nf4 {[%clk
0:00:12.8]} 20. Bxf4 {[%clk 0:00:18.5]} 20... gxf4 {[%clk 0:00:06.1]} 21. a4
{[%clk 0:00:14.5]} 21... Rxc3 {[%clk 0:00:04.8]} 22. Rfb1 {[%clk 0:00:13.6]}
22... b4 {[%clk 0:00:04.7]} 23. a5 {[%clk 0:00:10.1]} 23... Qc5 {[%clk
0:00:05.1]} 24. Ra4 {[%clk 0:00:10]} 24... Rc8 {[%clk 0:00:03.5]} 25. Nxb4
{[%clk 0:00:02.9]} 25... Rc1+ {[%clk 0:00:03.4]} 26. Rxc1 {[%clk 0:00:03.4]}
26... Qxc1+ {[%clk 0:00:04.2]} 27. Bd1 {[%clk 0:00:03.7]} 27... Nxe4 {[%clk
0:00:03.1]} 28. Nd3 {[%clk 0:00:02.8]} 28... Qd2 {[%clk 0:00:02.8]} 29. Qxd2
{[%clk 0:00:01.8]} 29... Nxd2 {[%clk 0:00:03.1]} 30. Ra2 {[%clk 0:00:02.6]}
30... Nc4 {[%clk 0:00:03.1]} 31. Rc2 {[%clk 0:00:03]} 31... b5 {[%clk
0:00:03.2]} 32. Nb4 {[%clk 0:00:02.9]} 32... Ra8 {[%clk 0:00:02.2]} 33. Nc6
{[%clk 0:00:03.1]} 33... Bf6 {[%clk 0:00:02.8]} 34. Be2 {[%clk 0:00:03.1]} 34...
Na3 {[%clk 0:00:03]} 35. Ra2 {[%clk 0:00:02.9]} 35... Nb1 {[%clk 0:00:03.3]} 36.
Bxb5 {[%clk 0:00:01.8]} 36... Nc3 {[%clk 0:00:04]} 37. Rb2 {[%clk 0:00:01.4]}
37... Nxd5 {[%clk 0:00:04.5]} 38. Bc4 {[%clk 0:00:01.6]} 38... Ne7 {[%clk
0:00:04.8]} 39. Nxe7+ {[%clk 0:00:01.5]} 39... Bxe7 {[%clk 0:00:05.7]} 40. Rb7
{[%clk 0:00:02.1]} 40... Kf8 {[%clk 0:00:06.3]} 41. a6 {[%clk 0:00:01.7]} 41...
Rc8 {[%clk 0:00:06.6]} 42. Bd5 {[%clk 0:00:02.6]} 42... Rc1# {[%clk 0:00:06.7]}
0-1